bitfinex/quotes_SOLUSD_20241121
["timestamp","ask_amount","ask_price","bid_price","bid_amount"]
[1732199814431,37.78756566,243.35,243.31,15.0]
[1732199814639,38.28756566,243.32,243.31,15.0]
[1732199814935,1.0,243.32,243.31,15.0]
[1732199816517,0.5,243.34,243.31,15.0]
[1732199816735,6.2961,243.45,243.31,15.0]
[1732199816736,0.5,243.39,243.31,15.0]
[1732199816914,0.5,243.43,243.32,20.0]
[1732199817109,37.78756566,243.42,243.33,37.78756566]
[1732199817759,37.78756566,243.49,243.41,37.78756566]
[1732199817958,37.78756566,243.5,243.42,37.78756566]
[1732199818267,37.78756566,243.46,243.39,57.78756566]
[1732199818757,37.78756566,243.5,243.41,37.78756566]
[1732199819144,37.78756566,243.48,243.39,57.78756566]
[1732199819656,37.78756566,243.48,243.14,0.09367462]
[1732199819657,37.78756566,243.44,243.37,37.78756566]
[1732199819853,37.78756566,243.44,243.38,20.0]
[1732199820227,37.78756566,243.44,243.14,0.09367462]
[1732199820228,37.78756566,243.44,243.36,20.0]
[1732199820442,37.78756566,243.42,243.34,20.0]
[1732199821032,37.78756566,243.44,243.35,37.78756566]
[1732199821744,37.78756566,243.46,243.37,37.78756566]
[1732199822027,0.5,243.47,243.34,37.78756566]
[1732199822253,37.78756566,243.47,243.4,37.78756566]
[1732199822555,37.78756566,243.43,243.35,20.0]
[1732199822742,37.78756566,243.41,243.35,20.0]
[1732199822909,38.28756566,243.39,243.16,2.8992]
[1732199823122,37.78756566,243.37,243.29,37.78756566]
[1732199823336,38.78756566,243.37,243.29,37.78756566]
[1732199823733,0.5,243.35,243.27,37.78756566]
[1732199823938,38.28756566,243.35,243.27,37.78756566]
[1732199824149,0.5,243.38,243.29,37.78756566]
[1732199824550,1.0,243.36,243.29,37.78756566]
[1732199824835,37.78756566,243.39,243.29,37.78756566]
[1732199825139,16.2284,243.4,243.31,37.78756566]
[1732199825351,37.78756566,243.37,243.28,37.78756566]
[1732199825548,37.78756566,243.37,243.29,20.0]
[1732199825728,37.78756566,243.39,243.3,37.78756566]
[1732199825928,37.78756566,243.39,243.16,2.8992]
[1732199825929,15.7284,243.4,243.16,2.8992]
[1732199826137,0.5,243.39,243.31,37.78756566]
[1732199826479,53.01596566,243.4,243.31,37.78756566]
[1732199826814,53.01596566,243.4,243.24,37.78756566]
[1732199826815,37.78756566,243.42,243.33,37.78756566]
[1732199827036,37.78756566,243.46,243.37,37.78756566]
[1732199827256,37.78756566,243.44,243.36,10.0]
[1732199827635,37.78756566,243.44,243.31,37.78756566]
[1732199827636,37.78756566,243.4,243.31,37.78756566]
[1732199827949,38.28756566,243.4,243.31,37.78756566]
[1732199828144,0.5,243.42,243.29,37.78756566]
[1732199828145,37.78756566,243.38,243.29,37.78756566]
[1732199828319,37.78756566,243.42,243.33,37.78756566]
[1732199828530,0.5,243.44,243.24,37.78756566]
[1732199828531,37.78756566,243.44,243.35,37.78756566]
[1732199828746,0.5,243.48,243.31,2.8992]
[1732199829087,37.78756566,243.44,243.36,20.0]
[1732199829431,37.78756566,243.46,243.38,20.0]
[1732199830057,0.5,243.49,243.31,2.8992]
[1732199830058,37.78756566,243.44,243.37,37.78756566]
[1732199830283,37.78756566,243.44,243.38,20.0]
[1732199830557,0.5,243.49,243.38,20.0]
[1732199830558,37.78756566,243.46,243.38,20.0]
[1732199830762,37.78756566,243.46,243.31,2.8992]
[1732199830763,37.78756566,243.48,243.4,20.0]
[1732199830983,37.78756566,243.48,243.42,20.0]
[1732199831285,37.78756566,243.52,243.43,37.78756566]
[1732199831488,37.78756566,243.52,243.46,20.0]
[1732199831864,37.78756566,243.47,243.38,37.78756566]
[1732199832283,37.78756566,243.45,243.39,20.0]
[1732199832456,37.78756566,243.45,243.36,37.78756566]
[1732199832787,37.78756566,243.43,243.34,37.78756566]
[1732199832953,37.78756566,243.48,243.39,37.78756566]
[1732199833164,37.78756566,243.5,243.41,37.78756566]
[1732199833563,37.78756566,243.52,243.43,37.78756566]
[1732199833767,37.78756566,243.52,243.44,20.0]
[1732199834154,37.78756566,243.5,243.41,37.78756566]
[1732199834474,37.78756566,243.51,243.44,20.0]
[1732199835178,38.28756566,243.47,243.39,37.78756566]
[1732199835484,15.9571,243.54,243.42,20.0]
[1732199835485,37.78756566,243.51,243.42,20.0]
[1732199835683,37.78756566,243.51,243.44,20.0]
[1732199836267,37.78756566,243.53,243.45,37.78756566]
[1732199836585,44.31116566,243.6,243.36,37.78756566]
[1732199836586,15.6704,243.63,243.52,20.0]
[1732199836891,15.6704,243.63,243.48,37.78756566]
[1732199836892,15.6704,243.7,243.61,20.0]
[1732199837057,0.5,243.74,243.68,20.0]
[1732199837261,44.07686566,243.76,243.68,20.0]
[1732199837262,44.57686566,243.76,243.68,20.0]
[1732199837464,0.5,243.78,243.71,37.78756566]
[1732199837659,0.5,243.74,243.68,20.0]
[1732199837876,15.6704,243.79,243.61,20.0]
[1732199837877,0.5,243.67,243.61,20.0]
[1732199838089,0.5,243.63,243.56,20.0]
[1732199838351,38.28756566,243.62,243.53,37.78756566]
[1732199838669,38.28756566,243.66,243.57,37.78756566]
[1732199839038,44.40266566,243.68,243.59,37.78756566]
[1732199839256,44.40266566,243.68,243.61,37.78756566]
[1732199839257,6.1151,243.68,243.61,37.78756566]
[1732199839510,0.5,243.72,243.64,37.78756566]
[1732199839678,0.5,243.72,243.65,20.0]
[1732199839879,0.5,243.75,243.66,37.78756566]
[1732199839880,0.5,243.74,243.66,37.78756566]
[1732199840381,0.5,243.7,243.65,20.0]
[1732199840587,0.5,243.7,243.63,20.0]
[1732199840885,0.5,243.72,243.64,37.78756566]
[1732199841051,38.28756566,243.7,243.63,20.0]
[1732199841238,0.5,243.79,243.7,20.0]
[1732199841463,0.5,243.86,243.78,20.0]
[1732199841670,0.5,243.83,243.78,20.0]
[1732199841962,0.5,243.77,243.7,20.0]
[1732199842156,0.5,243.79,243.7,20.0]
[1732199842356,0.5,243.79,243.7,57.78756566]
[1732199842582,0.5,243.75,243.7,57.78756566]
[1732199842897,0.5,243.75,243.68,37.78756566]
[1732199843685,0.5,243.68,243.62,37.78756566]
[1732199843973,0.5,243.65,243.58,37.78756566]
[1732199844179,0.5,243.63,243.56,37.78756566]
[1732199844964,0.5,243.61,243.56,37.78756566]
[1732199845268,1.0,243.65,243.58,37.78756566]
[1732199845438,0.5,243.65,243.6,37.78756566]
[1732199845974,0.5,243.68,243.62,37.78756566]
[1732199846157,1.0,243.69,243.62,37.78756566]
[1732199846359,0.5,243.67,243.62,37.78756566]
[1732199846549,0.5,243.67,243.48,37.78756566]
[1732199846550,1.0,243.67,243.61,20.0]
[1732199846775,0.5,243.65,243.59,20.0]
[1732199847066,0.5,243.66,243.6,37.78756566]
[1732199847379,0.5,243.62,243.56,20.0]
[1732199847586,0.5,243.57,243.39,11.4563]
[1732199847762,0.5,243.53,243.47,37.78756566]
[1732199848071,0.5,243.57,243.49,37.78756566]
[1732199848269,0.5,243.58,243.49,37.78756566]
[1732199848470,0.5,243.6,243.53,37.78756566]
[1732199848794,7.9843,243.62,243.55,37.78756566]
[1732199848962,7.4843,243.62,243.55,37.78756566]
[1732199849149,30.7615,243.82,243.48,37.78756566]
[1732199849150,37.78756566,243.66,243.57,37.78756566]
[1732199849343,0.5,243.67,243.59,37.78756566]
[1732199849565,1.0,243.64,243.59,37.78756566]
[1732199849780,0.5,243.62,243.59,37.78756566]
[1732199849983,0.5,243.59,243.58,20.0]
[1732199850155,0.5,243.63,243.58,20.0]
[1732199850355,0.5,243.63,243.59,37.78756566]
[1732199850567,1.0,243.65,243.6,20.0]
[1732199850871,0.5,243.67,243.6,20.0]
[1732199851187,1.0,243.71,243.63,37.78756566]
[1732199851375,7.9154,243.74,243.67,37.78756566]
[1732199851376,8.4154,243.74,243.67,37.78756566]
[1732199851688,37.78756566,243.73,243.65,37.78756566]
[1732199851866,8.4154,243.74,243.5,21.56777008]
[1732199851867,8.4154,243.74,243.67,37.78756566]
[1732199852080,0.5,243.77,243.7,20.0]
[1732199852403,0.5,243.77,243.66,20.0]
[1732199852404,58.33076566,243.79,243.72,20.0]
[1732199852578,20.0432,243.79,243.72,20.0]
[1732199852813,0.5,243.79,243.74,20.0]
[1732199853083,0.5,243.8,243.74,20.0]
[1732199853261,0.5,243.79,243.74,20.0]
[1732199853463,46.20296566,243.81,243.74,20.0]
[1732199853757,46.20296566,243.81,243.6,37.78756566]
[1732199853758,0.5,243.72,243.68,20.0]
[1732199853974,0.5,243.7,243.62,37.78756566]
[1732199854476,0.5,243.7,243.64,37.78756566]
[1732199854681,0.5,243.67,243.6,37.78756566]
[1732199854872,0.5,243.67,243.36,119.59513408]
[1732199854873,0.5,243.61,243.53,37.78756566]
[1732199855507,1.0,243.6,243.51,37.78756566]
[1732199855682,1.0,243.6,243.48,16.399495]
[1732199855683,0.5,243.62,243.55,37.78756566]
[1732199855866,37.78756566,243.65,243.55,37.78756566]
[1732199856042,37.78756566,243.67,243.57,37.78756566]
[1732199856385,37.78756566,243.61,243.51,37.78756566]
[1732199856942,37.78756566,243.58,243.48,37.78756566]
[1732199857176,7.9811,243.6,243.52,37.78756566]
[1732199857759,7.9811,243.6,243.54,37.78756566]
[1732199858145,45.76866566,243.66,243.56,37.78756566]
[1732199858556,45.76866566,243.66,243.48,37.78756566]
[1732199858761,7.9811,243.66,243.58,37.78756566]
[1732199858965,7.9811,243.66,243.59,20.0]
[1732199859162,37.78756566,243.64,243.53,37.78756566]
[1732199859381,37.78756566,243.62,243.54,20.0]
[1732199859844,7.9811,243.66,243.57,37.78756566]
[1732199859845,45.76866566,243.66,243.57,37.78756566]
[1732199860059,37.78756566,243.62,243.54,20.0]
[1732199860659,37.78756566,243.62,243.53,20.0]
[1732199861053,37.78756566,243.6,243.52,37.78756566]
[1732199862070,37.78756566,243.62,243.54,37.78756566]
[1732199862253,37.78756566,243.62,243.52,37.78756566]
[1732199862471,37.78756566,243.6,243.53,20.0]
[1732199862649,37.78756566,243.62,243.54,37.78756566]
[1732199862961,45.76866566,243.66,243.58,37.78756566]
[1732199863561,7.9811,243.66,243.6,37.78756566]
[1732199863874,37.78756566,243.66,243.59,20.0]
[1732199864060,19.9542,243.69,243.5,7.4053]
[1732199864061,19.9542,243.69,243.61,20.0]
[1732199864485,37.78756566,243.76,243.68,37.78756566]
[1732199864674,56.86156566,243.78,243.7,37.78756566]
[1732199864990,19.074,243.78,243.7,37.78756566]
[1732199865311,19.074,243.78,243.61,20.0]
[1732199865312,19.074,243.78,243.72,37.78756566]
[1732199865590,37.78756566,243.84,243.75,20.0]
[1732199865780,19.9977,243.85,243.75,20.0]
[1732199865781,37.78756566,243.8,243.75,20.0]
[1732199865961,19.9977,243.85,243.72,37.78756566]
[1732199865962,37.78756566,243.82,243.73,20.0]
[1732199866276,19.9977,243.85,243.75,20.0]
[1732199866277,37.78756566,243.84,243.75,20.0]
[1732199866579,37.78756566,243.82,243.75,20.0]
[1732199867262,19.9977,243.85,243.78,37.78756566]
[1732199867490,37.78756566,243.88,243.79,20.0]
[1732199867783,37.78756566,243.92,243.82,37.78756566]
[1732199868166,37.78756566,243.84,243.73,37.78756566]
[1732199868476,37.78756566,243.82,243.74,20.0]
[1732199868652,37.78756566,243.82,243.65,7.4818]
[1732199868653,37.78756566,243.8,243.72,20.0]
[1732199868847,37.78756566,243.82,243.73,37.78756566]
[1732199869049,37.78756566,243.82,243.74,20.0]
[1732199869556,37.78756566,243.84,243.76,20.0]
[1732199869745,37.78756566,243.82,243.74,20.0]
[1732199870077,37.78756566,243.78,243.69,37.78756566]
[1732199870475,37.78756566,243.76,243.65,37.78756566]
[1732199870996,7.5685,243.77,243.65,37.78756566]
[1732199870997,37.78756566,243.74,243.65,37.78756566]
[1732199871370,37.78756566,243.74,243.63,37.78756566]
[1732199871586,37.78756566,243.74,243.45,16.40133]
[1732199871587,37.78756566,243.68,243.59,37.78756566]
[1732199871791,37.78756566,243.63,243.53,37.78756566]
[1732199872306,37.78756566,243.61,243.53,37.78756566]
[1732199872596,37.78756566,243.61,243.44,7.4818]
[1732199872597,37.78756566,243.61,243.51,37.78756566]
[1732199873168,37.78756566,243.61,243.49,37.78756566]
[1732199873169,37.78756566,243.57,243.49,37.78756566]
[1732199873471,37.78756566,243.55,243.47,37.78756566]
[1732199873669,37.78756566,243.55,243.45,37.78756566]
[1732199874574,37.78756566,243.55,243.47,37.78756566]
[1732199874992,37.78756566,243.59,243.49,37.78756566]
[1732199875376,37.78756566,243.57,243.49,37.78756566]
[1732199875581,37.78756566,243.57,243.47,37.78756566]
[1732199876390,37.78756566,243.55,243.47,37.78756566]
[1732199876586,57.81666566,243.6,243.51,37.78756566]
[1732199877081,37.78756566,243.58,243.5,20.0]
[1732199878384,37.78756566,243.56,243.47,37.78756566]
[1732199879411,20.0291,243.6,243.41,37.78756566]
[1732199879412,37.78756566,243.49,243.41,37.78756566]
[1732199879607,37.78756566,243.49,243.39,37.78756566]
[1732199879813,37.78756566,243.47,243.39,37.78756566]
[1732199880573,37.78756566,243.51,243.41,37.78756566]
[1732199880902,37.78756566,243.53,243.45,37.78756566]
[1732199881130,57.81666566,243.6,243.47,37.78756566]
[1732199881131,37.78756566,243.55,243.47,37.78756566]
[1732199881418,7.9121,243.61,243.54,20.0]
[1732199881629,37.78756566,243.65,243.59,37.78756566]
[1732199881824,58.73056566,243.67,243.57,37.78756566]
[1732199882090,20.943,243.67,243.61,37.78756566]
[1732199882293,37.78756566,243.69,243.61,37.78756566]
[1732199882500,37.78756566,243.71,243.63,37.78756566]
[1732199882820,26.7869,243.74,243.65,37.78756566]
[1732199883317,37.78756566,243.71,243.64,20.0]
[1732199883487,37.78756566,243.73,243.64,20.0]
[1732199883689,26.7869,243.74,243.66,20.0]
[1732199884196,26.7869,243.74,243.67,37.78756566]
[1732199884381,37.78756566,243.84,243.66,20.0]
[1732199884382,37.78756566,243.79,243.69,37.78756566]
[1732199884576,37.78756566,243.79,243.71,37.78756566]
[1732199885028,19.2245,243.81,243.7,20.0]
[1732199885029,19.2245,243.81,243.73,37.78756566]
[1732199885172,19.2245,243.81,243.75,37.78756566]
[1732199885391,37.78756566,243.85,243.75,37.78756566]
[1732199885590,37.78756566,243.85,243.76,20.0]
[1732199885896,37.78756566,243.85,243.78,20.0]
[1732199886289,8.222,243.86,243.79,37.78756566]
[1732199886690,8.222,243.86,243.8,20.0]
[1732199886873,8.222,243.86,243.78,20.0]
[1732199887089,8.222,243.86,243.79,37.78756566]
[1732199887987,37.78756566,243.87,243.79,37.78756566]
[1732199888203,37.78756566,243.89,243.8,20.0]
[1732199888503,37.78756566,243.81,243.73,37.78756566]
[1732199888884,37.78756566,243.81,243.6,45.79046566]
[1732199888885,37.78756566,243.81,243.71,37.78756566]
[1732199889112,37.78756566,243.77,243.69,37.78756566]
[1732199889318,37.78756566,243.73,243.65,37.78756566]
[1732199889508,37.78756566,243.75,243.65,37.78756566]
[1732199889818,37.78756566,243.75,243.54,21.4273]
[1732199889819,37.78756566,243.75,243.67,37.78756566]
[1732199889999,37.78756566,243.75,243.6,37.78756566]
[1732199890000,8.0731,243.85,243.73,37.78756566]
[1732199890205,8.0731,243.85,243.66,16.387494]
[1732199890500,37.78756566,243.84,243.75,37.78756566]
[1732199890879,37.78756566,243.82,243.75,37.78756566]
[1732199891099,8.0731,243.85,243.75,37.78756566]
[1732199891100,37.78756566,243.84,243.75,37.78756566]
[1732199892272,8.0731,243.85,243.66,16.387494]
[1732199892273,37.78756566,243.82,243.73,37.78756566]
[1732199892486,37.78756566,243.82,243.74,20.0]
[1732199892712,8.0731,243.85,243.66,37.78756566]
[1732199892713,37.78756566,243.75,243.66,37.78756566]
[1732199892916,37.78756566,243.82,243.73,37.78756566]
[1732199893603,37.78756566,243.78,243.69,37.78756566]
[1732199894685,37.78756566,243.76,243.65,37.78756566]
[1732199894885,37.78756566,243.76,243.67,37.78756566]
[1732199895098,37.78756566,243.84,243.69,37.78756566]
[1732199895099,37.78756566,243.78,243.69,37.78756566]
[1732199895331,37.78756566,243.8,243.72,20.0]
[1732199895782,37.78756566,243.78,243.7,20.0]
[1732199895980,37.78756566,243.8,243.71,37.78756566]
[1732199896529,37.78756566,243.82,243.73,37.78756566]
[1732199896829,8.0731,243.85,243.79,37.78756566]
[1732199897314,37.78756566,243.88,243.79,37.78756566]
[1732199897534,37.78756566,243.86,243.77,37.78756566]
[1732199897733,37.78756566,243.79,243.7,37.78756566]
[1732199898031,37.78756566,243.84,243.71,20.0]
[1732199898032,37.78756566,243.77,243.71,20.0]
[1732199898316,37.78756566,243.75,243.66,37.78756566]
[1732199898517,37.78756566,243.73,243.64,37.78756566]
[1732199898802,8.3198,243.75,243.68,37.78756566]
[1732199899020,8.3198,243.75,243.7,37.78756566]
[1732199899306,37.78756566,243.79,243.7,37.78756566]
[1732199899504,37.78756566,243.81,243.72,37.78756566]
[1732199899700,8.3198,243.82,243.76,37.78756566]
[1732199899892,8.3198,243.82,243.74,37.78756566]
[1732199900091,8.3198,243.82,243.72,37.78756566]
[1732199900092,37.78756566,243.81,243.72,37.78756566]
[1732199900409,8.3198,243.82,243.74,37.78756566]
[1732199900592,37.78756566,243.81,243.72,37.78756566]
[1732199900919,37.78756566,243.81,243.63,16.38984]
[1732199900920,37.78756566,243.79,243.7,37.78756566]
[1732199901124,37.78756566,243.75,243.67,20.0]
[1732199901567,37.78756566,243.75,243.66,37.78756566]
[1732199901722,37.78756566,243.81,243.72,37.78756566]
[1732199902032,8.3198,243.82,243.74,37.78756566]
[1732199902230,37.78756566,243.78,243.69,37.78756566]
[1732199902607,37.78756566,243.8,243.71,37.78756566]
[1732199902809,46.10736566,243.82,243.73,37.78756566]
[1732199903007,37.78756566,243.8,243.72,20.0]
[1732199903415,37.78756566,243.76,243.67,37.78756566]
[1732199903806,37.78756566,243.78,243.69,37.78756566]
[1732199904109,37.78756566,243.76,243.67,37.78756566]
[1732199904406,37.78756566,243.78,243.69,37.78756566]
[1732199905112,37.78756566,243.78,243.7,20.0]
[1732199905544,37.78756566,243.8,243.71,37.78756566]
[1732199906221,37.78756566,243.72,243.63,37.78756566]
[1732199906730,37.78756566,243.72,243.61,54.17885366]
[1732199906906,37.78756566,243.72,243.63,37.78756566]
[1732199907411,37.78756566,243.74,243.63,37.78756566]
[1732199907599,37.78756566,243.72,243.64,20.0]
[1732199907822,19.4609,243.75,243.51,5.16987808]
[1732199907823,37.78756566,243.67,243.51,5.16987808]
[1732199908038,37.78756566,243.59,243.5,37.78756566]
[1732199908218,37.78756566,243.59,243.52,16.397311]
[1732199908417,37.78756566,243.57,243.48,37.78756566]
[1732199909934,37.78756566,243.55,243.46,37.78756566]
[1732199910128,37.78756566,243.47,243.42,16.404122]
[1732199910322,37.78756566,243.45,243.36,37.78756566]
[1732199910619,37.78756566,243.41,243.32,37.78756566]
[1732199911023,4.1066,243.51,243.32,37.78756566]
[1732199911234,37.78756566,243.43,243.34,37.78756566]
[1732199911618,37.78756566,243.41,243.32,37.78756566]
[1732199912144,37.78756566,243.41,243.33,20.0]
[1732199912327,37.78756566,243.43,243.34,37.78756566]
[1732199912521,37.78756566,243.41,243.32,37.78756566]
[1732199912869,37.78756566,243.48,243.28,37.78756566]
[1732199912870,37.78756566,243.37,243.28,37.78756566]
[1732199913238,37.78756566,243.37,243.26,37.78756566]
[1732199913430,37.78756566,243.37,243.28,37.78756566]
[1732199913816,37.78756566,243.37,243.26,37.78756566]
[1732199914334,37.78756566,243.37,243.28,37.78756566]
[1732199914526,37.78756566,243.37,243.26,37.78756566]
[1732199914733,20.0136,243.42,243.12,51.02056566]
[1732199914734,37.78756566,243.31,243.22,37.78756566]
[1732199915129,7.6886,243.36,243.2,37.78756566]
[1732199915130,37.78756566,243.29,243.2,37.78756566]
[1732199915699,37.78756566,243.23,243.01,0.03616134]
[1732199915950,23.776884,243.35,243.1,37.78756566]
[1732199915951,37.78756566,243.19,243.1,37.78756566]
[1732199916730,37.78756566,243.19,243.02,0.94054575]
[1732199916731,37.78756566,243.29,243.18,37.78756566]
[1732199916920,37.78756566,243.29,243.12,37.78756566]
[1732199916921,37.78756566,243.29,243.21,37.78756566]
[1732199917152,37.78756566,243.33,243.25,37.78756566]
[1732199917447,20.4601,243.34,243.27,37.78756566]
[1732199917909,20.4601,243.34,243.25,37.78756566]
[1732199918113,20.4601,243.34,243.27,37.78756566]
[1732199918500,37.78756566,243.37,243.29,37.78756566]
[1732199918727,37.78756566,243.39,243.31,37.78756566]
[1732199918915,37.78756566,243.37,243.29,37.78756566]
[1732199919234,20.7375,243.43,243.23,37.78756566]
[1732199919235,37.78756566,243.31,243.23,37.78756566]
[1732199919447,37.78756566,243.31,243.21,37.78756566]
[1732199919630,37.78756566,243.29,243.19,37.78756566]
[1732199919808,37.78756566,243.29,243.21,37.78756566]
[1732199920329,37.78756566,243.36,243.18,16.419968]
[1732199920330,37.78756566,243.27,243.18,16.419968]
[1732199920540,37.78756566,243.29,243.21,37.78756566]
[1732199920698,23.776884,243.35,243.19,37.78756566]
[1732199920900,23.776884,243.35,243.02,3.79802583]
[1732199920901,37.78756566,243.27,243.17,37.78756566]
[1732199921116,37.78756566,243.25,243.15,37.78756566]
[1732199921406,37.78756566,243.25,243.17,37.78756566]
[1732199921600,37.78756566,243.23,243.15,37.78756566]
[1732199921914,37.78756566,243.24,243.15,37.78756566]
[1732199922114,28.1008,243.25,243.19,37.78756566]
[1732199922316,28.1008,243.25,243.21,37.78756566]
[1732199922524,28.1008,243.25,243.19,37.78756566]
[1732199924010,0.5,243.2,243.17,37.78756566]
[1732199924242,20.6379,243.25,243.19,37.78756566]
[1732199924449,0.5,243.31,243.23,37.78756566]
[1732199924751,0.5,243.31,243.28,37.78756566]
[1732199925049,0.5,243.33,243.28,37.78756566]
[1732199925219,0.5,243.33,243.25,37.78756566]
[1732199925426,0.5,243.31,243.27,37.78756566]
[1732199925805,0.5,243.31,243.29,37.78756566]
[1732199926022,0.5,243.33,243.29,37.78756566]
[1732199926230,0.5,243.38,243.31,37.78756566]
[1732199926449,20.9369,243.42,243.24,57.78756566]
[1732199926450,20.9369,243.42,243.34,37.78756566]
[1732199926628,0.5,243.4,243.36,37.78756566]
[1732199926816,0.5,243.38,243.33,20.0]
[1732199927029,1.0,243.36,243.29,20.0]
[1732199927224,0.5,243.32,243.28,37.78756566]
[1732199927416,0.5,243.32,243.17,13.233]
[1732199927417,0.5,243.29,243.26,37.78756566]
[1732199927650,0.5,243.29,243.09,13.233]
[1732199927651,0.5,243.29,243.23,20.0]
[1732199927949,0.5,243.3,243.22,37.78756566]
[1732199927950,0.5,243.27,243.22,37.78756566]
[1732199928120,0.5,243.27,243.24,37.78756566]
[1732199928321,0.5,243.27,243.26,37.78756566]
[1732199928525,0.5,243.24,243.2,37.78756566]
[1732199928721,0.5,243.24,243.11,8.1924]
[1732199928722,0.5,243.24,243.22,37.78756566]
[1732199929124,0.5,243.24,243.2,37.78756566]
[1732199929321,0.5,243.26,243.22,37.78756566]
[1732199930030,0.5,243.28,243.22,37.78756566]
[1732199930235,0.5,243.28,243.24,37.78756566]
[1732199930533,0.5,243.28,243.22,37.78756566]
[1732199930830,0.5,243.23,243.08,16.426243]
[1732199931162,0.5,243.21,243.18,37.78756566]
[1732199931524,0.5,243.26,243.2,37.78756566]
[1732199931714,0.5,243.26,243.22,37.78756566]
[1732199932141,0.5,243.25,243.22,37.78756566]
[1732199932462,0.5,243.28,243.24,37.78756566]
[1732199932753,8.4196,243.31,243.26,37.78756566]
[1732199932943,0.5,243.3,243.26,37.78756566]
[1732199933116,8.4196,243.31,243.26,37.78756566]
[1732199933316,0.5,243.3,243.26,37.78756566]
[1732199933924,0.5,243.28,243.24,37.78756566]
[1732199934125,0.5,243.28,243.23,20.0]
[1732199934323,0.5,243.26,243.22,37.78756566]
[1732199934634,0.5,243.28,243.22,37.78756566]
[1732199934822,0.5,243.26,243.24,37.78756566]
[1732199935122,0.5,243.3,243.24,37.78756566]
[1732199935625,0.5,243.26,243.24,37.78756566]
[1732199935823,0.5,243.26,243.22,37.78756566]
[1732199936429,37.78756566,243.29,243.2,37.78756566]
[1732199937038,46.20716566,243.31,243.22,37.78756566]
[1732199937340,37.78756566,243.29,243.2,37.78756566]
[1732199937717,19.075,243.3,243.24,37.78756566]
[1732199937916,19.075,243.3,243.22,37.78756566]
[1732199938627,37.78756566,243.29,243.2,37.78756566]
[1732199939527,19.075,243.3,243.22,37.78756566]
[1732199940128,37.78756566,243.29,243.2,37.78756566]
[1732199940339,19.075,243.3,243.13,20.0]
[1732199940340,19.075,243.3,243.24,37.78756566]
[1732199940631,19.075,243.3,243.24,23.31674235]
[1732199941624,19.075,243.3,243.26,23.31674235]
[1732199941844,19.075,243.3,243.24,23.31674235]
[1732199942029,19.075,243.3,243.13,20.0]
[1732199942030,18.575,243.3,243.26,23.31674235]
[1732199942860,18.575,243.3,243.22,23.31674235]
[1732199943158,18.575,243.3,243.24,23.31674235]
[1732199944525,18.575,243.3,243.28,23.31674235]
[1732199945149,8.4196,243.31,243.28,23.31674235]
[1732199945337,8.4196,243.31,243.13,20.0]
[1732199945338,27.8326,243.37,243.3,23.31674235]
[1732199945546,10.2652,243.54,243.34,23.31674235]
[1732199945547,23.31674235,243.43,243.34,23.31674235]
[1732199945861,7.529,243.44,243.38,23.31674235]
[1732199946042,23.31674235,243.43,243.34,23.31674235]
[1732199946240,23.31674235,243.37,243.28,23.31674235]
[1732199946545,23.31674235,243.35,243.26,23.31674235]
[1732199946748,23.31674235,243.37,243.28,23.31674235]
[1732199947054,23.31674235,243.41,243.33,23.31674235]
[1732199947364,7.529,243.44,243.37,23.31674235]
[1732199948030,23.31674235,243.43,243.33,23.31674235]
[1732199948257,23.31674235,243.39,243.15,0.5]
[1732199948565,23.31674235,243.35,243.25,23.31674235]
[1732199948750,23.31674235,243.33,243.25,23.31674235]
[1732199949048,23.31674235,243.35,243.25,23.31674235]
[1732199949265,31.52884235,243.29,243.21,23.31674235]
[1732199949752,31.52884235,243.29,243.12,23.31674235]
[1732199949753,8.2121,243.29,243.23,23.31674235]
[1732199950056,8.2121,243.29,243.25,23.31674235]
[1732199950860,8.2121,243.29,243.23,23.31674235]
[1732199951764,31.52884235,243.29,243.21,23.31674235]
[1732199951974,31.52884235,243.29,243.23,23.31674235]
[1732199951975,8.2121,243.29,243.23,23.31674235]
[1732199952151,8.2121,243.29,243.25,23.31674235]
[1732199952345,8.2121,243.29,243.23,23.31674235]
[1732199952662,8.2121,243.29,243.21,23.31674235]
[1732199952663,31.52884235,243.29,243.21,23.31674235]